[Event "Championnat d'Europe de Blitz"]
[Date "2024.12.09"]
[White "Larkin, Vladyslav"]
[Black "Kazakouski, Valery"]
[WhiteElo "2449"]
[BlackElo "2567"]
[Round "5.6"]
[Result "0-1"]
[TimeControl "180+2"]

1. e4 {[%emt 00:18:37] [%clk 00:03:03]} e5 {[%clk 00:03:03]} 2. Nf3 {[%emt
00:00:01] [%clk 00:03:04]} Nc6 {[%clk 00:03:04]} 3. Bb5 {[%emt 00:00:01] [%clk
00:03:05]} Bc5 {[%emt 00:00:02] [%clk 00:03:05]} 4. c3 {[%emt 00:00:03] [%clk
00:03:03]} Nf6 {[%clk 00:03:06]} 5. O-O {[%emt 00:00:03] [%clk 00:03:02]} O-O
{[%emt 00:00:43] [%clk 00:02:25]} 6. d4 {[%emt 00:00:02] [%clk 00:03:02]} Bb6
{[%emt 00:00:05] [%clk 00:02:22]} 7. Re1 {[%emt 00:00:03] [%clk 00:03:01]} d6
{[%emt 00:00:04] [%clk 00:02:21]} 8. h3 {[%emt 00:00:06] [%clk 00:02:56]} Bd7
{[%emt 00:00:07] [%clk 00:02:17]} 9. Ba4 {[%emt 00:00:03] [%clk 00:02:54]} Re8
{[%emt 00:00:05] [%clk 00:02:14]} 10. Bc2 {[%emt 00:01:48] [%clk 00:01:08]} h6
{[%emt 00:00:11] [%clk 00:02:06]} 11. a3 {[%emt 00:00:08] [%clk 00:01:01]} a6
{[%emt 00:00:19] [%clk 00:01:49]} 12. b3 {[%emt 00:00:05] [%clk 00:00:58]} Nh7
{[%emt 00:00:21] [%clk 00:01:30]} 13. Be3 {[%emt 00:00:08] [%clk 00:00:53]} Ng5
{[%emt 00:00:34] [%clk 00:00:57]} 14. Nbd2 {[%emt 00:00:01] [%clk 00:00:54]}
Nxf3+ {[%emt 00:00:14] [%clk 00:00:45]} 15. Nxf3 {[%emt 00:00:02] [%clk
00:00:54]} Ba7 {[%emt 00:00:04] [%clk 00:00:43]} 16. Qd2 {[%emt 00:00:03] [%clk
00:00:53]} Qf6 {[%emt 00:00:05]} 17. Rad1 {[%clk 00:00:54]} Rad8 {[%emt
00:00:13] [%clk 00:00:31]} 18. dxe5 {[%emt 00:00:10] [%clk 00:00:46]} dxe5
{[%emt 00:00:03] [%clk 00:00:30]} 19. Bxa7 {[%emt 00:00:01] [%clk 00:00:46]}
Nxa7 {[%clk 00:00:31]} 20. Qe3 {[%emt 00:00:03] [%clk 00:00:45]} Nb5 {[%emt
00:00:02] [%clk 00:00:32]} 21. a4 {[%emt 00:00:08] [%clk 00:00:40]} Nd6 {[%clk
00:00:33]} 22. Rd2 {[%emt 00:00:08] [%clk 00:00:34]} Bc6 {[%emt 00:00:09] [%clk
00:00:26]} 23. Red1 {[%emt 00:00:03] [%clk 00:00:32]} a5 {[%emt 00:00:02] [%clk
00:00:27]} 24. c4 {[%emt 00:00:16] [%clk 00:00:18]} b6 {[%emt 00:00:09] [%clk
00:00:19]} 25. Re1 {[%emt 00:00:11] [%clk 00:00:09]} Nb7 {[%emt 00:00:01] [%clk
00:00:20]} 26. Red1 {[%emt 00:00:04] [%clk 00:00:08]} Rxd2 {[%emt 00:00:01]
[%clk 00:00:20]} 27. Rxd2 {[%clk 00:00:09]} Nc5 {[%clk 00:00:22]} 28. Ne1 {[%emt
00:00:04] [%clk 00:00:07]} Ne6 {[%emt 00:00:02] [%clk 00:00:22]} 29. Nf3 {[%emt
00:00:01] [%clk 00:00:08]} Nc5 {[%emt 00:00:01] [%clk 00:00:22]} 30. Ne1 {[%emt
00:00:02] [%clk 00:00:08]} h5 {[%emt 00:00:03] [%clk 00:00:21]} 31. Rd1 {[%emt
00:00:01] [%clk 00:00:09]} g6 {[%emt 00:00:01] [%clk 00:00:22]} 32. Nf3 {[%emt
00:00:04] [%clk 00:00:08]} Kg7 {[%emt 00:00:01] [%clk 00:00:23]} 33. Ng5 {[%emt
00:00:01] [%clk 00:00:08]} Rd8 {[%emt 00:00:03] [%clk 00:00:23]} 34. Rxd8 {[%emt
00:00:03] [%clk 00:00:07]} Qxd8 {[%clk 00:00:24]} 35. f4 {[%emt 00:00:06] [%clk
00:00:04]} exf4 {[%emt 00:00:07] [%clk 00:00:20]} 36. Qxf4 {[%clk 00:00:05]}
Qd4+ {[%emt 00:00:07] [%clk 00:00:15]} 37. Kh1 {[%emt 00:00:01] [%clk 00:00:06]}
Qa1+ {[%emt 00:00:01] [%clk 00:00:16]} 38. Kh2 {[%emt 00:00:01] [%clk 00:00:07]}
Qf6 {[%emt 00:00:03] [%clk 00:00:15]} 39. Qg3 {[%emt 00:00:01] [%clk 00:00:08]}
Nd7 {[%emt 00:00:03] [%clk 00:00:14]} 40. Nf3 {[%clk 00:00:09]} Qd8 {[%emt
00:00:03] [%clk 00:00:12]} 41. Nd4 {[%emt 00:00:03] [%clk 00:00:09]} Bb7 {[%emt
00:00:01] [%clk 00:00:13]} 42. e5 {[%clk 00:00:10]} Nf8 {[%emt 00:00:04] [%clk
00:00:11]} 43. Nf5+ {[%emt 00:00:01] [%clk 00:00:11]} Kh7 {[%emt 00:00:02] [%clk
00:00:12]} 44. Ne3 {[%emt 00:00:05] [%clk 00:00:07]} Ne6 {[%emt 00:00:03] [%clk
00:00:11]} 45. Qf3 {[%clk 00:00:08]} Bxf3 {[%emt 00:00:01] [%clk 00:00:11]} 0-1

[Site "Europe Echecs"]

[Event "Championnat d'Europe de Blitz"]
[Date "2024.12.09"]
[White "Sarana, Alexey"]
[Black "Krallis, Christos"]
[WhiteElo "2674"]
[BlackElo "2383"]
[Round "5.7"]
[Result "1-0"]
[TimeControl "180+2"]

1. d4 {[%clk 00:03:03]} d5 {[%emt 00:00:02] [%clk 00:03:01]} 2. c4 {[%emt
00:00:02] [%clk 00:03:04]} e6 {[%emt 00:00:01] [%clk 00:03:01]} 3. Nc3 {[%clk
00:03:05]} Nf6 {[%emt 00:00:02] [%clk 00:03:01]} 4. Bg5 {[%emt 00:00:02] [%clk
00:03:06]} Be7 {[%emt 00:00:04] [%clk 00:02:58]} 5. e3 {[%emt 00:00:01] [%clk
00:03:07]} O-O {[%emt 00:00:08] [%clk 00:02:53]} 6. Qc2 {[%emt 00:00:01] [%clk
00:03:08]} Nbd7 {[%emt 00:00:29] [%clk 00:02:26]} 7. cxd5 {[%emt 00:00:06] [%clk
00:03:04]} exd5 {[%emt 00:00:08] [%clk 00:02:20]} 8. Nf3 {[%emt 00:00:04] [%clk
00:03:02]} c6 {[%emt 00:00:03] [%clk 00:02:19]} 9. Bd3 {[%emt 00:00:02] [%clk
00:03:02]} h6 {[%emt 00:00:02] [%clk 00:02:19]} 10. Bf4 {[%emt 00:00:04] [%clk
00:03:00]} Re8 {[%emt 00:00:19] [%clk 00:02:02]} 11. O-O {[%emt 00:00:02] [%clk
00:03:00]} Nf8 {[%emt 00:00:02] [%clk 00:02:02]} 12. h3 {[%emt 00:00:04] [%clk
00:02:58]} Ne6 {[%emt 00:00:17] [%clk 00:01:47]} 13. Be5 {[%emt 00:00:01] [%clk
00:02:59]} Bd6 {[%emt 00:00:03] [%clk 00:01:46]} 14. Rae1 {[%emt 00:00:10] [%clk
00:02:50]} Ng5 {[%emt 00:00:03] [%clk 00:01:45]} 15. Nh2 {[%emt 00:00:34] [%clk
00:02:18]} Nge4 {[%emt 00:00:05] [%clk 00:01:42]} 16. Bxd6 {[%emt 00:00:10]
[%clk 00:02:10]} Qxd6 {[%emt 00:00:08] [%clk 00:01:37]} 17. Nf3 {[%emt 00:00:02]
[%clk 00:02:10]} Bf5 {[%emt 00:00:26] [%clk 00:01:12]} 18. Ne5 {[%emt 00:00:02]
[%clk 00:02:11]} Bh7 {[%emt 00:00:04] [%clk 00:01:10]} 19. Ne2 {[%emt 00:00:12]
[%clk 00:02:01]} c5 {[%emt 00:00:04] [%clk 00:01:08]} 20. b3 {[%emt 00:00:01]
[%clk 00:02:02]} cxd4 {[%emt 00:00:08] [%clk 00:01:03]} 21. exd4 {[%emt
00:00:01] [%clk 00:02:02]} Rac8 {[%clk 00:01:04]} 22. Qb2 {[%emt 00:00:02] [%clk
00:02:02]} Qb4 {[%emt 00:00:09] [%clk 00:00:57]} 23. Rd1 {[%emt 00:00:18] [%clk
00:01:46]} Nc3 {[%emt 00:00:04] [%clk 00:00:54]} 24. Nxc3 {[%emt 00:00:15] [%clk
00:01:34]} Qxc3 {[%emt 00:00:02] [%clk 00:00:54]} 25. Bxh7+ {[%emt 00:00:02]
[%clk 00:01:34]} Nxh7 {[%emt 00:00:01] [%clk 00:00:54]} 26. Qa3 {[%emt 00:00:02]
[%clk 00:01:35]} a6 {[%emt 00:00:07] [%clk 00:00:49]} 27. Rd3 {[%emt 00:00:03]
[%clk 00:01:34]} Qc7 {[%emt 00:00:09] [%clk 00:00:42]} 28. Re3 {[%emt 00:00:09]
[%clk 00:01:28]} Nf6 {[%emt 00:00:02] [%clk 00:00:42]} 29. Rfe1 {[%emt 00:00:03]
[%clk 00:01:27]} Re6 {[%emt 00:00:08] [%clk 00:00:36]} 30. Qb4 {[%emt 00:00:10]
[%clk 00:01:19]} Qb6 {[%emt 00:00:05] [%clk 00:00:33]} 31. Qxb6 {[%emt 00:00:16]
[%clk 00:01:05]} Rxb6 {[%clk 00:00:34]} 32. Nd3 {[%emt 00:00:01] [%clk
00:01:07]} Ne4 {[%emt 00:00:12] [%clk 00:00:24]} 33. f3 {[%emt 00:00:33] [%clk
00:00:36]} Nc3 {[%emt 00:00:01] [%clk 00:00:25]} 34. a4 {[%emt 00:00:16] [%clk
00:00:22]} Rxb3 {[%emt 00:00:06] [%clk 00:00:20]} 35. Nc5 {[%emt 00:00:01] [%clk
00:00:24]} Ra3 {[%emt 00:00:03] [%clk 00:00:19]} 36. Nxb7 {[%emt 00:00:18] [%clk
00:00:07]} Rxa4 {[%emt 00:00:02] [%clk 00:00:20]} 37. Nd6 {[%clk 00:00:08]} Rc6
{[%emt 00:00:04] [%clk 00:00:18]} 38. Re8+ {[%emt 00:00:02] [%clk 00:00:09]} Kh7
{[%clk 00:00:20]} 39. Nxf7 {[%emt 00:00:01] [%clk 00:00:10]} Rf6 {[%emt
00:00:12] [%clk 00:00:10]} 40. R1e7 {[%emt 00:00:06] [%clk 00:00:06]} Ne2+
{[%emt 00:00:02] [%clk 00:00:09]} 41. Kh2 {[%emt 00:00:03] [%clk 00:00:06]} Nxd4
{[%emt 00:00:03] [%clk 00:00:08]} 42. Rh8+ {[%emt 00:00:01] [%clk 00:00:07]} Kg6
{[%emt 00:00:01] [%clk 00:00:09]} 43. Ne5+ {[%clk 00:00:08]} Kf5 {[%emt
00:00:03] [%clk 00:00:07]} 44. Ng4 {[%emt 00:00:02] [%clk 00:00:09]} Re6 {[%emt
00:00:03] [%clk 00:00:06]} 45. Rxg7 {[%emt 00:00:02] [%clk 00:00:09]} Re2 {[%emt
00:00:02] [%clk 00:00:05]} 46. Rf8+ {[%emt 00:00:02] [%clk 00:00:10]} Ke6 {[%emt
00:00:01] [%clk 00:00:04]} 47. Rf6# {[%emt 00:00:03] [%clk 00:00:11]} 1-0

[Site "Europe Echecs"]

[Event "Championnat d'Europe de Blitz"]
[Date "2024.12.09"]
[White "Koelle, Tobias"]
[Black "Navara, David"]
[WhiteElo "2437"]
[BlackElo "2665"]
[Round "5.8"]
[Result "1-0"]
[TimeControl "180+2"]

1. d4 {[%clk 00:03:03]} Nf6 {[%clk 00:03:03]} 2. c4 {[%clk 00:03:04]} e6 {[%clk
00:03:04]} 3. Nf3 {[%clk 00:03:05]} b6 {[%emt 00:00:02] [%clk 00:03:05]} 4. g3
{[%clk 00:03:06]} Ba6 {[%emt 00:00:02] [%clk 00:03:06]} 5. Qc2 {[%clk 00:03:07]}
c5 {[%emt 00:00:08] [%clk 00:03:01]} 6. d5 {[%emt 00:00:01] [%clk 00:03:09]}
exd5 {[%emt 00:00:04] [%clk 00:02:59]} 7. cxd5 {[%clk 00:03:10]} Bb7 {[%emt
00:00:01] [%clk 00:03:00]} 8. Bg2 {[%clk 00:03:11]} Nxd5 {[%emt 00:00:02] [%clk
00:03:00]} 9. O-O {[%emt 00:00:01] [%clk 00:03:11]} Nc6 {[%emt 00:00:04] [%clk
00:02:59]} 10. Rd1 {[%clk 00:03:12]} Be7 {[%emt 00:00:04] [%clk 00:02:57]} 11.
a3 {[%emt 00:00:01] [%clk 00:03:13]} Nc7 {[%emt 00:00:02] [%clk 00:02:57]} 12.
Bf4 {[%emt 00:00:01] [%clk 00:03:13]} Ne6 {[%emt 00:00:07] [%clk 00:02:52]} 13.
Nc3 {[%emt 00:00:06] [%clk 00:03:09]} O-O {[%emt 00:00:09] [%clk 00:02:46]} 14.
e3 {[%clk 00:03:11]} Nxf4 {[%emt 00:00:07] [%clk 00:02:41]} 15. gxf4 {[%emt
00:00:01] [%clk 00:03:11]} d6 {[%emt 00:00:17] [%clk 00:02:27]} 16. Nd5 {[%emt
00:00:01] [%clk 00:03:12]} Qd7 {[%emt 00:00:09] [%clk 00:02:21]} 17. Kh1 {[%clk
00:03:13]} f5 {[%emt 00:00:11] [%clk 00:02:13]} 18. Rd2 {[%emt 00:00:01] [%clk
00:03:14]} Kh8 {[%emt 00:00:03] [%clk 00:02:11]} 19. Rad1 {[%emt 00:00:01] [%clk
00:03:15]} Rad8 {[%emt 00:00:02] [%clk 00:02:10]} 20. b4 {[%emt 00:00:05] [%clk
00:03:13]} Qe8 {[%emt 00:00:16] [%clk 00:01:56]} 21. b5 {[%emt 00:00:33] [%clk
00:02:43]} Nb8 {[%emt 00:00:19] [%clk 00:01:38]} 22. Ng5 {[%emt 00:00:17] [%clk
00:02:28]} Bxg5 {[%emt 00:00:10] [%clk 00:01:30]} 23. fxg5 {[%emt 00:00:01]
[%clk 00:02:28]} Bxd5 {[%emt 00:00:29] [%clk 00:01:04]} 24. Rxd5 {[%emt
00:00:02] [%clk 00:02:27]} f4 {[%emt 00:00:02] [%clk 00:01:05]} 25. exf4 {[%emt
00:00:36] [%clk 00:01:53]} Rxf4 {[%emt 00:00:02] [%clk 00:01:05]} 26. Qd2 {[%emt
00:00:01] [%clk 00:01:54]} Qf8 {[%clk 00:01:06]} 27. Rxd6 {[%emt 00:00:05] [%clk
00:01:51]} Rd4 {[%emt 00:00:01] [%clk 00:01:06]} 28. Rxd4 {[%emt 00:00:08] [%clk
00:01:46]} Rxd4 {[%emt 00:00:04] [%clk 00:01:04]} 29. Qe2 {[%emt 00:00:02] [%clk
00:01:45]} Nd7 {[%emt 00:00:38] [%clk 00:00:29]} 30. Bc6 {[%emt 00:00:01] [%clk
00:01:47]} Rxd1+ {[%emt 00:00:07] [%clk 00:00:24]} 31. Qxd1 {[%clk 00:01:48]}
Ne5 {[%emt 00:00:01] [%clk 00:00:25]} 32. Qd5 {[%emt 00:00:07] [%clk 00:01:42]}
Ng6 {[%emt 00:00:13] [%clk 00:00:14]} 33. Kg1 {[%emt 00:00:13] [%clk 00:01:31]}
Nf4 {[%emt 00:00:07] [%clk 00:00:09]} 34. Qe4 {[%emt 00:00:27] [%clk 00:01:06]}
Nh3+ {[%emt 00:00:02] [%clk 00:00:09]} 35. Kg2 {[%clk 00:01:07]} Nxg5 {[%emt
00:00:04] [%clk 00:00:08]} 36. Qe5 {[%emt 00:00:04] [%clk 00:01:06]} h6 {[%emt
00:00:03] [%clk 00:00:07]} 37. h4 {[%emt 00:00:07] [%clk 00:01:00]} Nf7 {[%emt
00:00:04] [%clk 00:00:04]} 38. Qc7 {[%emt 00:00:03] [%clk 00:01:00]} Nd6 {[%clk
00:00:05]} 39. Qxa7 {[%emt 00:00:02] [%clk 00:01:00]} Qd8 {[%emt 00:00:02] [%clk
00:00:05]} 40. a4 {[%emt 00:00:03] [%clk 00:00:59]} Nf5 {[%emt 00:00:02] [%clk
00:00:05]} 41. a5 {[%emt 00:00:09] [%clk 00:00:52]} Nxh4+ {[%emt 00:00:02] [%clk
00:00:05]} 42. Kh3 {[%clk 00:00:53]} g5 {[%emt 00:00:05] [%clk 00:00:03]} 43.
Qa8 {[%emt 00:00:06] [%clk 00:00:49]} Qxa8 {[%emt 00:00:02] [%clk 00:00:04]} 44.
Bxa8 {[%clk 00:00:50]} Ng6 {[%emt 00:00:04] [%clk 00:00:00]} 1-0

[Site "Europe Echecs"]

[Event "Championnat d'Europe de Blitz"]
[Date "2024.12.09"]
[White "Deac, Bogdan-Daniel"]
[Black "Beerdsen, Thomas"]
[WhiteElo "2696"]
[BlackElo "2502"]
[Round "5.9"]
[Result "1-0"]
[TimeControl "180+2"]

1. Nf3 {[%clk 00:03:02]} d5 {[%emt 00:00:03] [%clk 00:03:01]} 2. e3 {[%emt
00:00:06] [%clk 00:02:58]} Nf6 {[%emt 00:00:04] [%clk 00:02:59]} 3. c4 {[%clk
00:02:59]} c6 {[%emt 00:00:08] [%clk 00:02:53]} 4. Nc3 {[%clk 00:03:00]} a6
{[%emt 00:00:04] [%clk 00:02:52]} 5. Qc2 {[%emt 00:00:01] [%clk 00:03:00]} b5
{[%emt 00:00:08] [%clk 00:02:45]} 6. b3 {[%emt 00:00:01] [%clk 00:03:01]} g6
{[%emt 00:00:07] [%clk 00:02:40]} 7. Bb2 {[%emt 00:00:10] [%clk 00:02:54]} Bf5
{[%emt 00:00:07] [%clk 00:02:35]} 8. Bd3 {[%emt 00:00:03] [%clk 00:02:54]} Bxd3
{[%emt 00:00:22] [%clk 00:02:14]} 9. Qxd3 {[%emt 00:00:02] [%clk 00:02:54]} e6
{[%emt 00:00:12] [%clk 00:02:04]} 10. cxd5 {[%emt 00:00:20] [%clk 00:02:36]}
cxd5 {[%emt 00:00:04] [%clk 00:02:02]} 11. a4 {[%emt 00:00:11] [%clk 00:02:27]}
b4 {[%emt 00:00:03] [%clk 00:02:01]} 12. Ne2 {[%emt 00:00:15] [%clk 00:02:15]}
Nbd7 {[%clk 00:02:02]} 13. Rc1 {[%emt 00:00:10] [%clk 00:02:07]} Bg7 {[%emt
00:00:08] [%clk 00:01:56]} 14. O-O {[%emt 00:00:42] [%clk 00:01:27]} O-O {[%emt
00:00:02] [%clk 00:01:57]} 15. Rc6 {[%emt 00:00:04] [%clk 00:01:24]} a5 {[%emt
00:00:28] [%clk 00:01:31]} 16. Rfc1 {[%emt 00:01:12]} Qb8 {[%clk 00:01:04]} 17.
Rc7 {[%emt 00:00:06] [%clk 00:00:39]} Ra7 {[%emt 00:00:05] [%clk 00:01:01]} 18.
Rxa7 {[%emt 00:00:13] [%clk 00:00:28]} Qxa7 {[%clk 00:01:02]} 19. Ne5 {[%emt
00:00:11] [%clk 00:00:19]} Nxe5 {[%emt 00:00:05] [%clk 00:01:00]} 20. Bxe5
{[%clk 00:00:20]} Ne4 {[%emt 00:00:02] [%clk 00:01:00]} 21. Bxg7 {[%emt
00:00:10] [%clk 00:00:13]} Kxg7 {[%emt 00:00:01] [%clk 00:01:01]} 22. f3 {[%emt
00:00:03] [%clk 00:00:11]} Nf6 {[%emt 00:00:02] [%clk 00:01:01]} 23. Qd4 {[%emt
00:00:03] [%clk 00:00:10]} Qb8 {[%emt 00:00:04] [%clk 00:01:00]} 24. Qc5 {[%emt
00:00:02] [%clk 00:00:09]} Qa8 {[%emt 00:00:13] [%clk 00:00:50]} 25. Nd4 {[%emt
00:00:02] [%clk 00:00:09]} e5 {[%emt 00:00:09] [%clk 00:00:42]} 26. Nb5 {[%emt
00:00:03] [%clk 00:00:08]} Rd8 {[%emt 00:00:15] [%clk 00:00:29]} 27. Qc7 {[%emt
00:00:02] [%clk 00:00:08]} e4 {[%emt 00:00:19] [%clk 00:00:12]} 28. f4 {[%clk
00:00:10]} Rd7 {[%emt 00:00:02] [%clk 00:00:13]} 29. Qe5 {[%emt 00:00:01] [%clk
00:00:09]} Qd8 {[%emt 00:00:02] [%clk 00:00:13]} 30. Rc6 {[%emt 00:00:03] [%clk
00:00:09]} d4 {[%emt 00:00:09] [%clk 00:00:06]} 31. Nxd4 {[%emt 00:00:04] [%clk
00:00:07]} Rd5 {[%clk 00:00:08]} 32. Qc7 {[%emt 00:00:02] [%clk 00:00:06]} Qe8
{[%emt 00:00:03] [%clk 00:00:07]} 33. Qb6 {[%emt 00:00:04] [%clk 00:00:05]} Nh5
{[%emt 00:00:03] [%clk 00:00:06]} 34. g3 {[%emt 00:00:02] [%clk 00:00:05]} Qe7
{[%emt 00:00:05] [%clk 00:00:03]} 35. Rc7 {[%emt 00:00:01] [%clk 00:00:06]} Qe8
{[%clk 00:00:04]} 36. Qb7 {[%emt 00:00:02] [%clk 00:00:06]} Rd8 {[%emt 00:00:02]
[%clk 00:00:04]} 37. Qc6 {[%emt 00:00:02] [%clk 00:00:06]} Qxc6 {[%emt 00:00:04]
[%clk 00:00:03]} 38. Rxc6 {[%emt 00:00:01] [%clk 00:00:07]} Nf6 {[%emt 00:00:02]
[%clk 00:00:03]} 39. Kf1 {[%emt 00:00:02] [%clk 00:00:06]} Nd5 {[%emt 00:00:02]
[%clk 00:00:03]} 40. Rc5 {[%emt 00:00:02] [%clk 00:00:06]} h5 {[%clk 00:00:04]}
41. Rxa5 {[%emt 00:00:01] [%clk 00:00:06]} h4 {[%clk 00:00:06]} 42. Rc5 {[%emt
00:00:04] [%clk 00:00:05]} hxg3 {[%emt 00:00:01] [%clk 00:00:07]} 43. hxg3
{[%emt 00:00:01] [%clk 00:00:06]} Nf6 {[%clk 00:00:08]} 44. a5 {[%emt 00:00:05]
[%clk 00:00:05]} Rh8 {[%clk 00:00:10]} 45. Kg2 {[%emt 00:00:01] [%clk 00:00:05]}
Ng4 {[%clk 00:00:11]} 46. Rg5 {[%emt 00:00:01] [%clk 00:00:06]} Nf6 {[%emt
00:00:06] [%clk 00:00:07]} 47. a6 {[%emt 00:00:02] [%clk 00:00:06]} Ra8 {[%emt
00:00:04] [%clk 00:00:04]} 48. Ra5 {[%clk 00:00:08]} Nd7 {[%emt 00:00:04] [%clk
00:00:04]} 49. a7 {[%emt 00:00:02] [%clk 00:00:07]} Nb6 {[%clk 00:00:05]} 50.
Nc6 {[%emt 00:00:01] [%clk 00:00:08]} Kf6 {[%clk 00:00:06]} 51. Nxb4 {[%emt
00:00:03] [%clk 00:00:08]} Ke6 {[%clk 00:00:07]} 52. Ra6 {[%emt 00:00:01] [%clk
00:00:09]}

[Site "Europe Echecs"]

[Event "Championnat d'Europe de Blitz"]
[Date "2024.12.09"]
[White "Mamedov, Rauf"]
[Black "Gavrilescu, David"]
[WhiteElo "2656"]
[BlackElo "2549"]
[Round "5.10"]
[Result "1/2-1/2"]
[TimeControl "180+2"]

1. e4 {[%emt 00:18:04] [%clk 00:03:04]} c5 {[%emt 00:00:03] [%clk 00:03:03]} 2.
Nf3 {[%clk 00:03:04]} e6 {[%emt 00:00:01] [%clk 00:03:03]} 3. c3 {[%emt
00:00:02] [%clk 00:03:05]} Nf6 {[%emt 00:00:01] [%clk 00:03:04]} 4. e5 {[%emt
00:00:02] [%clk 00:03:04]} Nd5 {[%clk 00:03:05]} 5. a3 {[%clk 00:03:06]} a6
{[%emt 00:00:01] [%clk 00:03:06]} 6. d4 {[%emt 00:00:02] [%clk 00:03:06]} cxd4
{[%emt 00:00:03] [%clk 00:03:05]} 7. cxd4 {[%emt 00:00:04] [%clk 00:03:04]} d6
{[%clk 00:03:06]} 8. Bd3 {[%emt 00:00:02] [%clk 00:03:04]} Bd7 {[%emt 00:00:01]
[%clk 00:03:06]} 9. Qe2 {[%emt 00:00:10] [%clk 00:02:56]} Bc6 {[%emt 00:00:14]
[%clk 00:02:54]} 10. O-O {[%emt 00:00:05] [%clk 00:02:53]} Nd7 {[%emt 00:00:02]
[%clk 00:02:54]} 11. Re1 {[%emt 00:00:40] [%clk 00:02:16]} dxe5 {[%emt 00:00:23]
[%clk 00:02:33]} 12. dxe5 {[%emt 00:00:09] [%clk 00:02:08]} Nc5 {[%emt 00:00:08]
[%clk 00:02:27]} 13. Bc2 {[%emt 00:00:11] [%clk 00:01:59]} Be7 {[%emt 00:00:13]
[%clk 00:02:16]} 14. b4 {[%emt 00:00:09] [%clk 00:01:53]} Bb5 {[%emt 00:00:44]
[%clk 00:01:33]} 15. Qd1 {[%emt 00:00:04] [%clk 00:01:52]} Nd7 {[%emt 00:00:08]
[%clk 00:01:27]} 16. Nd4 {[%emt 00:00:02] [%clk 00:01:52]} Rc8 {[%emt 00:00:16]
[%clk 00:01:12]} 17. Nxb5 {[%emt 00:00:03] [%clk 00:01:52]} axb5 {[%emt
00:00:01] [%clk 00:01:13]} 18. Bd3 {[%emt 00:00:01] [%clk 00:01:53]} Qb6 {[%emt
00:00:05] [%clk 00:01:10]} 19. Qg4 {[%emt 00:00:31] [%clk 00:01:23]} Nxe5 {[%emt
00:00:08] [%clk 00:01:04]} 20. Qe2 {[%emt 00:00:22] [%clk 00:01:04]} Nxd3 {[%emt
00:00:20] [%clk 00:00:46]} 21. Qxd3 {[%emt 00:00:01] [%clk 00:01:05]} O-O {[%emt
00:00:03] [%clk 00:00:45]} 22. Bb2 {[%clk 00:01:06]} Rfd8 {[%emt 00:00:04] [%clk
00:00:43]} 23. Qe2 {[%emt 00:00:12] [%clk 00:00:56]} Bf6 {[%emt 00:00:10] [%clk
00:00:35]} 24. Bxf6 {[%emt 00:00:01] [%clk 00:00:57]} Nxf6 {[%emt 00:00:01]
[%clk 00:00:36]} 25. Ra2 {[%emt 00:00:12] [%clk 00:00:47]} h6 {[%emt 00:00:04]
[%clk 00:00:33]} 26. h3 {[%clk 00:00:49]} Rc4 {[%emt 00:00:04] [%clk 00:00:31]}
27. Nd2 {[%emt 00:00:03] [%clk 00:00:47]} Rc3 {[%emt 00:00:02] [%clk 00:00:32]}
28. Nf3 {[%emt 00:00:05] [%clk 00:00:44]} Nd5 {[%emt 00:00:05] [%clk 00:00:29]}
29. Qe5 {[%emt 00:00:06] [%clk 00:00:40]} Rdc8 {[%emt 00:00:05] [%clk 00:00:26]}
30. Nd4 {[%emt 00:00:09] [%clk 00:00:32]} Rc1 {[%emt 00:00:12] [%clk 00:00:17]}
31. Rae2 {[%emt 00:00:02] [%clk 00:00:31]} Rxe1+ {[%emt 00:00:04] [%clk
00:00:16]} 32. Rxe1 {[%clk 00:00:33]} Rc4 {[%emt 00:00:02] [%clk 00:00:16]} 33.
Nf5 {[%clk 00:00:33]} exf5 {[%emt 00:00:07] [%clk 00:00:11]} 34. Qxd5 {[%emt
00:00:01] [%clk 00:00:35]} Qc6 {[%emt 00:00:09] [%clk 00:00:04]} 35. Qxf5 {[%emt
00:00:03] [%clk 00:00:33]} Rc1 {[%emt 00:00:03] [%clk 00:00:04]} 36. Rxc1 {[%emt
00:00:06] [%clk 00:00:29]} Qxc1+ {[%emt 00:00:01] [%clk 00:00:04]} 37. Kh2
{[%clk 00:00:31]} Qxa3 {[%emt 00:00:02] [%clk 00:00:04]} 38. Qxb5 {[%emt
00:00:05] [%clk 00:00:28]} Qa8 {[%emt 00:00:03] [%clk 00:00:04]} 39. Qe5 {[%emt
00:00:04] [%clk 00:00:26]} Qd8 {[%emt 00:00:03] [%clk 00:00:03]} 40. b5 {[%clk
00:00:26]} b6 {[%emt 00:00:01] [%clk 00:00:04]} 41. g3 {[%emt 00:00:04] [%clk
00:00:24]} g6 {[%emt 00:00:01] [%clk 00:00:05]} 42. h4 {[%emt 00:00:02] [%clk
00:00:25]} h5 {[%clk 00:00:06]} 43. Kg2 {[%emt 00:00:01] [%clk 00:00:26]} Qa8+
{[%clk 00:00:08]} 44. Kh2 {[%emt 00:00:02] [%clk 00:00:26]} Qd8 {[%emt 00:00:02]
[%clk 00:00:08]} 45. Qe4 {[%emt 00:00:03] [%clk 00:00:25]} Qd6 {[%emt 00:00:01]
[%clk 00:00:08]} 46. Qc6 {[%emt 00:00:03] [%clk 00:00:22]} Qd4 {[%emt 00:00:04]
[%clk 00:00:09]} 47. Kg2 {[%emt 00:00:01] [%clk 00:00:23]} Kg7 {[%clk 00:00:10]}
48. Qf3 {[%emt 00:00:03] [%clk 00:00:22]} Qe5 {[%emt 00:00:01] [%clk 00:00:11]}
49. Qb3 {[%emt 00:00:02] [%clk 00:00:23]} Qe4+ {[%clk 00:00:11]} 50. Kh2 {[%emt
00:00:01] [%clk 00:00:23]} Qd4 {[%clk 00:00:12]} 51. Kg1 {[%emt 00:00:02] [%clk
00:00:24]} Qa1+ {[%emt 00:00:01] [%clk 00:00:12]} 52. Kg2 {[%emt 00:00:01] [%clk
00:00:25]} Qe5 {[%emt 00:00:02] [%clk 00:00:13]} 53. Qd3 {[%emt 00:00:02] [%clk
00:00:25]} Qc5 {[%emt 00:00:03] [%clk 00:00:12]} 54. Kf3 {[%emt 00:00:02] [%clk
00:00:25]} Qe5 {[%emt 00:00:02] [%clk 00:00:12]} 55. Qc4 {[%emt 00:00:02] [%clk
00:00:24]} Qb2 {[%emt 00:00:04] [%clk 00:00:11]} 56. Ke3 {[%emt 00:00:03] [%clk
00:00:23]} Qa3+ {[%emt 00:00:03] [%clk 00:00:10]} 57. Qd3 {[%emt 00:00:05] [%clk
00:00:19]} Qe7+ {[%emt 00:00:05] [%clk 00:00:08]} 58. Qe4 {[%emt 00:00:03] [%clk
00:00:18]} Qa3+ {[%emt 00:00:01] [%clk 00:00:09]} 59. Qd3 {[%emt 00:00:03] [%clk
00:00:17]} Qe7+ {[%clk 00:00:10]} 60. Kd2 {[%emt 00:00:03] [%clk 00:00:15]} Qc5
{[%emt 00:00:03] [%clk 00:00:09]} 61. Qc3+ {[%emt 00:00:02] [%clk 00:00:15]}
Qxc3+ {[%emt 00:00:02] [%clk 00:00:09]} 62. Kxc3 {[%clk 00:00:17]} Kf6 {[%clk
00:00:10]} 1/2-1/2

[Site "Europe Echecs"]